Cogmind - Beta 16 @@@ ROGUE MODE // 2025.11.23 @ 15:56:38 Player: f3-rnm Result: Destroyed by Y-54 Guardian with Flak Gun Performance ------------- Evolutions (4) 2000 Regions Visited (6) 1200 Robots Destroyed (42) 210 Value Destroyed (1455) 1455 Prototype IDs (9) 180 Alien Tech Used (0) 0 Bonus (816) 816 TOTAL SCORE: 5861 Bonus ------- Follower Combat Kills 25 Registered with UFD 300 Met Optimus in HQ 500 Friendly Fire -9 Cogmind --------- Core Integrity 0/850 Matter 172/300 Energy 160/160 System Corruption 10% Temperature Cool (6) Movement Treading (160) Location -6/Lower Caves Parts ------- > --- POWER (1) -------- Light Fission Core > --- PROPULSION (6) --- Light Treads Improved Medium Treads > --- UTILITY (6) ------ Large Storage Unit Enhanced Optical Array Improved Melee Analysis Suite Enhanced Scrap Shield Hacking Suite > --- WEAPON (2) ------- Gauss Rifle Companion Sword (fused) > --- INVENTORY (15) --- IFF Parser Reaction Control System Improved Reaction Control System Magnetic Acceleration Cannon Peak State ------------ > --- POWER ------------ Light Fission Core > --- PROPULSION ------- Hover Unit Hover Unit Hover Unit Hover Unit Gravmag System Cooled Aerolev Unit > --- UTILITY ---------- Large Storage Unit Improved Sensor Array Advanced Terrain Scanner Surveybot 17 Chip Improved Light Armor Plating Hacking Suite > --- WEAPON ----------- Magnetic Acceleration Cannon Companion Sword > --- INVENTORY -------- Nuclear Core Improved Titanium Leg Deep Structural Scanner Improved Melee Analysis Suite Focal Shield A0-MCA's Component Scanner Rocket Launcher Missile Launcher [Rating: 55] Favorites ----------- Power Ion Engine Engine Ion Engine Power Core Nuclear Core Propulsion Light Treads Treads Light Treads Leg Improved Titanium Leg Wheel Subdweller Monowheel Hover Unit Hover Unit Utility Core Shielding Device IFF Parser Storage Huge Storage Unit Processor Improved Melee Analysis Suite Hackware Hacking Suite Protection Core Shielding Weapon Assault Rifle Energy Gun Small Laser Energy Cannon Ion Cannon Ballistic Gun Assault Rifle Ballistic Cannon Light Cannon Launcher Grenade Launcher Slashing Weapon Companion Sword Build | -11 -10 -10 -10 -8 -6 -6 ------- Run | Yrd Mat Min Sub Scr Fac Low Slots Evolved 8 | . . . . . 8 . Power . | . . . . . . . Propulsion 4 | . . . . . 4 . Utility 4 | . . . . . 4 . Weapon . | . . . . . . . Parts Attached 60 | 6 3 . 10 11 27 3 Power 7 | 1 . . 2 1 2 1 Engine 3 | 1 . . 2 . . . Core 4 | . . . . 1 2 1 Reactor . | . . . . . . . Propulsion 23 | 2 . . 3 5 13 . Treads 5 | 2 . . 1 . 2 . Leg 6 | . . . . 1 5 . Wheel 3 | . . . 2 1 . . Hover 9 | . . . . 3 6 . Flight . | . . . . . . . Utility 17 | 1 2 . . 3 10 1 Device 5 | . . . . . 5 . Storage 5 | 1 1 . . 2 1 . Processor 3 | . . . . . 3 . Hackware 1 | . . . . 1 . . Protection 3 | . 1 . . . 1 1 Artifact . | . . . . . . . Weapon 13 | 2 1 . 5 2 2 1 Energy Gun 1 | . . . 1 . . . Energy Cannon 1 | . . . . 1 . . Ballistic Gun 5 | 2 . . 2 . . 1 Ballistic Cannon 2 | . 1 . . . 1 . Launcher 3 | . . . 2 . 1 . Special Weapon . | . . . . . . . Impact Weapon . | . . . . . . . Slashing Weapon 1 | . . . . 1 . . Piercing Weapon . | . . . . . . . Special Melee Weapon . | . . . . . . . Unidentified Prototypes 3 | . . . . 1 1 1 Parts Lost 29 | . . . 11 . 18 . Power 5 | . . . 3 . 2 . Propulsion 17 | . . . 4 . 13 . Utility 2 | . . . . . 2 . Weapon 5 | . . . 4 . 1 . Highest Loss Streak 9 | . . . 6 . 9 . To Critical Strikes . | . . . . . . . Average Backups 10 | 1 8 18 19 7 7 5 Power . | . 1 1 . . . . Propulsion 3 | . 2 8 7 2 . . Utility 3 | . 1 3 4 2 4 3 Weapon 3 | . 3 6 6 2 1 1 Tool/Special . | . . . . . . . Unused Backups 17 | . . . . 7 6 4 Power 1 | . . . . . 1 . Propulsion 1 | . . . . . . 1 Utility 11 | . . . . 3 5 3 Weapon 4 | . . . . 4 . . Tool/Special . | . . . . . . . Average Slot Usage (%) 61 | . 97 100 95 41 55 61 Engine 4 | . 14 14 12 . . . Core 1 | . . . . 1 2 6 Treads 8 | . 28 28 19 . 1 11 Leg 4 | . . . . 6 5 . Wheel 6 | . . . 6 9 . . Hover 2 | . . . . 3 5 . Storage 10 | . 14 14 14 10 3 6 Processor 2 | . . . . . 15 13 Hackware 2 | . . . . 2 6 6 Protection 5 | . 11 14 14 2 . 4 Ballistic Gun 5 | . 19 14 16 . . 3 Ballistic Cannon 3 | . 8 14 6 . . 1 Slashing Weapon 2 | . . . . 3 5 6 Peak Build Rating 55 | 6 8 9 10 25 55 48 Average Rating 12 | 4 7 8 8 8 37 44 On Entrance 11 | . 6 8 9 9 22 23 Avg Prop Armor Cover (%) 17 | . . . 12 20 17 . Naked Turns 201 | . . . . 201 . . Heaviest Build 200 | 14 91 91 91 200 36 53 Greatest Support 66 | 40 40 40 40 20 66 50 Greatest Overweight (x) 66 | 2 2 2 8 66 8 1 Average Overweight (x) 2 | . 1 2 4 2 . . Largest Inventory Capacity 35 | 8 25 25 25 35 15 15 Average Capacity 20 | 6 19 25 25 20 11 15 Most Carried 23 | 3 18 20 21 23 14 10 Average Carried 10 | 1 8 18 19 8 7 4 Final Capacity 25 | 8 25 25 25 15 15 15 Final Carried 21 | 3 18 20 21 15 11 4 Class Distribution -------------------- 81% | Mutant 16% | Hauler-Mutant Dominant Class ---------------- Mutant | -10/Materials Mutant | -10/Mines Mutant | -10/Subcaves Mutant | -8/Scraptown Mutant | -6/Factory Mutant | -6/Lower Caves Resources | -11 -10 -10 -10 -8 -6 -6 ----------- Run | Yrd Mat Min Sub Scr Fac Low Matter Collected 1371 | 248 46 218 249 171 439 . Remotely . | . . . . . . . Salvage Created 1845 | 24 66 281 296 . 1129 49 Parts 84 | 5 4 17 16 . 40 2 Haulers Intercepted . | . . . . . . . Recyclers Shooed 2 | . . . . . 2 . Parts Field Recycled . | . . . . . . . Retrieved Matter . | . . . . . . . Parts Self-Destructed 7 | . . . 5 . . 2 Prevented . | . . . . . . . Parts Restored . | . . . . . . . Kills | -11 -10 -10 -10 -8 -6 -6 ------- Run | Yrd Mat Min Sub Scr Fac Low Combat Hostiles Destroyed 35 | . 2 9 7 . 15 2 Melee 15 | . . . . . 15 . Guns 11 | . . 3 6 . . 2 Cannons 8 | . 2 6 . . . . AOE 1 | . . . 1 . . . Classes Destroyed 11 | 1 1 2 2 . 5 . Builder 2 | . . . . . 2 . Tunneler 2 | 1 . 1 . . . . Recycler 3 | . . 1 . . 2 . Swarmer 8 | . . 6 . . . 2 Grunt 14 | . 2 3 . . 9 . Brawler 1 | . . . . . 1 . Sentry 2 | . . . . . 2 . Hunter 1 | . . . . . 1 . Programmer 2 | . . . . . 2 . Artisan 1 | . . . 1 . . . Subdweller 7 | . . . 7 . . . Best Kill Streak 4 | 1 1 4 2 . 4 2 Combat Bots Only 4 | . 1 3 2 . 4 2 Max Kills in Single Turn 2 | 1 1 2 2 . 1 1 Gunslinging . | . . . . . . . Exploded 1 | . . . 1 . . . Melee 1 | . . . . . 1 . Uniques/NPCs Destroyed . | . . . . . . . Combat | -11 -10 -10 -10 -8 -6 -6 -------- Run | Yrd Mat Min Sub Scr Fac Low Hostile Shots Fired 391 | . 10 24 67 . 199 91 Missed 120 | . 2 6 15 . 57 40 Hits 271 | . 8 18 52 . 142 51 Melee 1 | . . . . . 1 . Projectile 270 | . 8 18 52 . 141 51 AOE 3 | . . . 3 . . . Critical Strikes 10 | . . 1 2 . 7 . Damage Taken 4522 | . 108 201 1180 . 2540 493 Core 1013 | . . 31 131 . 720 131 Absorbed by Shields . | . . . . . . . Redirected to Shielding 36 | . . 7 29 . . . Core Remaining (%) 67 | 100 . . . 35 . . Volleys Fired 99 | 4 10 22 38 . 9 16 Largest 2 | 2 2 2 2 . 1 1 Hottest 63 | 40 50 50 63 . 44 44 Shots Fired 170 | 8 20 44 73 . 9 16 Gun 114 | 8 15 22 55 . . 14 Cannon 50 | . 5 22 16 . 5 2 Launcher 6 | . . . 2 . 4 . Special . | . . . . . . . Kinetic 160 | 8 20 44 67 . 5 16 Thermal 4 | . . . 4 . . . Explosive 6 | . . . 2 . 4 . Electromagnetic . | . . . . . . . Robot Hit Streak 30 | 4 6 4 30 . 5 12 Robot Miss Streak 4 | 2 1 3 4 . . 3 Penetration Max . | . . . . . . . Secondary Targets 1 | . . . 1 . . . Max Gunslinging Chain 1 | . . . 1 . . . Shots Hit Robots 162 | 4 15 24 48 . 59 12 Core Hits 66 | 1 5 13 16 . 27 4 Critical Kills 2 | 1 . . . . . 1 Critical Parts Destroyed . | . . . . . . . Critical Strikes 6 | 1 . 2 . . 2 1 Destroy 2 | 1 . . . . . 1 Blast 2 | . . 2 . . . . Melee Attacks 66 | . . . . . 66 . Impact . | . . . . . . . Slashing 66 | . . . . . 66 . Piercing . | . . . . . . . Sneak Attacks 11 | . . . . . 11 . Combat Hostiles 2 | . . . . . 2 . Follow-up Attacks . | . . . . . . . Damage Inflicted 4431 | 52 218 393 475 . 3061 232 Guns 866 | 52 129 129 324 . . 232 Cannons 403 | . 89 260 54 . . . Explosions 464 | . . . 97 . 367 . Melee 2675 | . . . . . 2675 . Ramming 23 | . . 4 . . 19 . Kinetic 1237 | 52 218 389 346 . . 232 Thermal 32 | . . . 32 . . . Explosive 464 | . . . 97 . 367 . Electromagnetic . | . . . . . . . Impact . | . . . . . . . Slashing 2675 | . . . . . 2675 . Piercing . | . . . . . . . Highest Corruption 10 | . . . . . 10 10 Average Corruption 7 | . . . . . 6 10 Corruption Purged . | . . . . . . . Corruption Blocked . | . . . . . . . Effects 41 | . . . . . 37 4 Message Errors 12 | . . . . . 12 . Matter Fused 7 | . . . . . 7 . Heat Flow Errors 3 | . . . . . 2 1 Energy Discharges 8 | . . . . . 6 2 Parts Rejected 1 | . . . . . 1 . Parts Fused 1 | . . . . . 1 . Data Loss (minor) 3 | . . . . . 3 . Data Loss (major) 1 | . . . . . 1 . Alerts 5 | . . . . . 4 1 Overload Shots . | . . . . . . . Overflow Damage 307 | . . . . . 307 . Projectiles . | . . . . . . . Explosions 14 | . . . . . 14 . Melee 293 | . . . . . 293 . Knockbacks 5 | . 2 . 3 . . . Impact . | . . . . . . . Kinetic 5 | . 2 . 3 . . . Secondary . | . . . . . . . Self-Inflicted Damage 10 | . . . . . 10 . Shots 1 | . . . . . 1 . Rammed 1 | . . 1 . . . . Targets Rammed 7 | . . 1 . . 6 . Kicked 6 | . . . . . 6 . Crushed . | . . . . . . . Highest Temperature 227 | . 6 7 . . 112 227 Average Temperature 46 | . 2 3 . . 32 138 Received Heat Transfer 1209 | . 63 78 90 . 906 72 Effects 1 | . . . . . . 1 Energy Bleed 1 | . . . . . . 1 Siege Activations . | . . . . . . . Martial Activations . | . . . . . . . Shielding Activations . | . . . . . . . Robots Disrupted 1 | . . . . . 1 . Combat Hostiles 1 | . . . . . 1 . Robots Corrupted . | . . . . . . . Combat Hostiles . | . . . . . . . Parts Fried . | . . . . . . . Impact Corruptions . | . . . . . . . Robots Melted . | . . . . . . . Combat Hostiles . | . . . . . . . Parts Melted . | . . . . . . . Heat Transferred 75 | . . . 75 . . . Parts Sabotaged . | . . . . . . . Parts Stolen . | . . . . . . . Parts Stripped . | . . . . . . . Power Chain Reactions . | . . . . . . . Alert | -11 -10 -10 -10 -8 -6 -6 ------- Run | Yrd Mat Min Sub Scr Fac Low Maximum Alert Level . | . . . . . . . Low Security (%) 100 | 100 100 100 . . 100 . Level 1 . | . . . . . . . Level 2 . | . . . . . . . Level 3 . | . . . . . . . Level 4 . | . . . . . . . Level 5 . | . . . . . . . High Security . | . . . . . . . Max Security . | . . . . . . . Peak Influence 117 | 5 30 107 . . 117 . Initial . | . . . . . . . Average 17 | . 2 22 . . 19 . Influence Increases 886 | 5 50 295 . . 496 40 Destroy 0b10 Robot/C 580 | . 40 200 . . 300 40 Destroy 0b10 Robot/NC 35 | 5 . 10 . . 20 . Destroy Leader 130 | . 10 40 . . 80 . Allied During Kill 30 | . . 30 . . . . Disable Machine 15 | . . 15 . . . . Destroy Structure 21 | . . . . . 21 . Lose Combat Pursuer 75 | . . . . . 75 . Influence Decreases 839 | 5 50 223 72 . 436 53 Entered New Map 61 | . . . 38 . . 23 Time Decay 592 | 5 50 203 34 . 270 30 Lost Part 166 | . . . . . 166 . Lost Ally 20 | . . 20 . . . . Squads Dispatched 8 | . . . . . 8 . Investigation 4 | . . . . . 4 . Extermination 2 | . . . . . 2 . Reinforcement 1 | . . . . . 1 . Assault . | . . . . . . . Garrison 1 | . . . . . 1 . Intercept . | . . . . . . . Searches Triggered . | . . . . . . . Construction Impeded . | . . . . . . . Haulers Reinforced . | . . . . . . . Active Scanning Responses . | . . . . . . . Cargo Convoy Interrupts 1 | . . . . . 1 . Stealth | -11 -10 -10 -10 -8 -6 -6 --------- Run | Yrd Mat Min Sub Scr Fac Low Distress Signals 1 | . . . . . 1 . Communications Jammed . | . . . . . . . Distress Signals . | . . . . . . . Times Spotted 65 | . 9 10 7 . 36 3 Peak Tracking Total 11 | . 3 3 2 . 11 3 Tactical Retreats 4 | . . . . . 4 . Traps | -11 -10 -10 -10 -8 -6 -6 ------- Run | Yrd Mat Min Sub Scr Fac Low Traps Triggered . | . . . . . . . Indirectly . | . . . . . . . Trap Hack Attempts . | . . . . . . . Triggered . | . . . . . . . Disarmed . | . . . . . . . Reprogrammed . | . . . . . . . Reused . | . . . . . . . Traps Extracted . | . . . . . . . Installed . | . . . . . . . Triggered . | . . . . . . . Machines | -11 -10 -10 -10 -8 -6 -6 ---------- Run | Yrd Mat Min Sub Scr Fac Low Machines Disabled 1 | . . 1 . . . . Max in Single Turn 1 | . . 1 . . . . Machines Repaired . | . . . . . . . Machines Dismantled . | . . . . . . . Machines Sabotaged . | . . . . . . . Overloaded Fab Kills . | . . . . . . . Hacking | -11 -10 -10 -10 -8 -6 -6 --------- Run | Yrd Mat Min Sub Scr Fac Low Machines Accessed 9 | . . . . 4 5 . Terminals 1 | . . . . . 1 . Fabricators . | . . . . . . . Repair Stations . | . . . . . . . Recycling Units 3 | . . . . . 3 . Scanalyzers . | . . . . . . . Garrison Access 1 | . . . . . 1 . Total Hacks 31 | . . . . 22 9 . Successful 25 | . . . . 22 3 . Failed 6 | . . . . . 6 . Catastrophic . | . . . . . . . Database Lockouts . | . . . . . . . Manual 5 | . . . . . 5 . Terminals 1 | . . . . . 1 . Fabricators . | . . . . . . . Repair Stations . | . . . . . . . Recycling Units 5 | . . . . . 5 . Scanalyzers . | . . . . . . . Garrison Access 3 | . . . . . 3 . Terminal Hacks 22 | . . . . 22 . . Record 20 | . . . . 20 . . Open Door 1 | . . . . 1 . . Proto ID Catalog 1 | . . . . 1 . . Fabricator Hacks . | . . . . . . . Repair Station Hacks . | . . . . . . . Recycling Unit Hacks . | . . . . . . . Scanalyzer . | . . . . . . . Garrison Access Hacks . | . . . . . . . Unauthorized Hacks 3 | . . . . . 3 . Terminals . | . . . . . . . Fabricators . | . . . . . . . Repair Stations . | . . . . . . . Recycling Units 3 | . . . . . 3 . Fedlink 3 | . . . . . 3 . Scanalyzers . | . . . . . . . Garrison Access . | . . . . . . . Data Cores Recovered . | . . . . . . . Used . | . . . . . . . Hacking Detections 3 | . . . . . 3 . Full Trace Events 1 | . . . . . 1 . Feedback Events . | . . . . . . . Feedback Blocked . | . . . . . . . Robot Schematics Acquired . | . . . . . . . Robots Built . | . . . . . . . Authchips . | . . . . . . . Time . | . . . . . . . Total Robot Build Rating . | . . . . . . . Part Schematics Acquired . | . . . . . . . Parts Built . | . . . . . . . Authchips . | . . . . . . . Time . | . . . . . . . Total Part Build Rating . | . . . . . . . Part Studies Acquired . | . . . . . . . Parts Repaired . | . . . . . . . Time . | . . . . . . . Parts Recycled . | . . . . . . . Recycled Matter . | . . . . . . . Retrieved Matter . | . . . . . . . Retrieved Components . | . . . . . . . Parts Scanalyzed . | . . . . . . . Part Schematics Acquired . | . . . . . . . Parts Damaged . | . . . . . . . Bothacking | -11 -10 -10 -10 -8 -6 -6 ------------ Run | Yrd Mat Min Sub Scr Fac Low Used RIF Installer . | . . . . . . . Robots Hacked . | . . . . . . . Non-combat . | . . . . . . . Combat . | . . . . . . . Robot Hacks Applied . | . . . . . . . Relay Couplers Released . | . . . . . . . Fabnet Peak Effective % . | . . . . . . . Robots Rewired . | . . . . . . . Allies Hacked . | . . . . . . . Hacks Repelled . | . . . . . . . Allies | -11 -10 -10 -10 -8 -6 -6 -------- Run | Yrd Mat Min Sub Scr Fac Low Total Allies 3 | . . 3 . . . . Largest Group 3 | . . 3 2 . . . Highest-Rated Group 40 | . . 40 32 . . . Highest-Rated Ally 16 | . . 16 16 . . . Total Orders . | . . . . . . . Ally Attacks 25 | . . 9 16 . . . Total Damage 110 | . . 94 16 . . . Kills 1 | . . 1 . . . . Allies Corrupted . | . . . . . . . Allies Melted . | . . . . . . . Intel | -11 -10 -10 -10 -8 -6 -6 ------- Run | Yrd Mat Min Sub Scr Fac Low Active Infowar (turns) 939 | . . . . . 875 64 Optics 821 | . . . . . 757 64 Sensors 115 | . . . . . 115 . IFF 432 | . . . . . 432 . Terrain 106 | . . . . . 106 . Robot Analysis Total . | . . . . . . . Derelict Logs Recovered 5 | . . 1 1 3 . . Drone Launches . | . . . . . . . Drone Recoveries . | . . . . . . . Exploration | -11 -10 -10 -10 -8 -6 -6 ------------- Run | Yrd Mat Min Sub Scr Fac Low Turns Passed 9944 | 108 631 1602 856 5398 1285 64 Spaces Moved 4354 | 56 244 417 297 2596 739 5 Core 707 | 14 . . . 588 105 . Treads 868 | 42 244 417 102 . 58 5 Legs 1858 | . . . . 1548 310 . Wheels 501 | . . . 195 306 . . Hover 420 | . . . . 154 266 . Flight . | . . . . . . . Fastest Speed 38 | 50 160 320 150 50 38 160 Average Speed 200 | 152 240 320 230 206 92 224 Slowest Speed 3350 | 160 320 320 480 3350 450 240 Overloaded Moves 6 | . . . . . 6 . Propulsion Burnouts . | . . . . . . . Robots Hopped . | . . . . . . . Potential Cave-ins . | . . . . . . . Cave-ins Triggered . | . . . . . . . Exploration Rate (%) 38 | 4 40 96 21 84 16 5 Regions Visited 6 Branch Regions 4 Pre-discovered Areas 7 | . . 1 1 4 1 . Known Exits Taken 2 | . . . . 1 1 . Unknown Exits Taken 4 | 1 1 1 1 . . . Scrap Searched 11 | . . 2 . 9 . . Spaces Dug 5 | . . . . . 5 . Terrain Destroyed 41 | . . . 12 . 27 2 Melee 3 | . . . . . 3 . Projectile 5 | . . . . . 3 2 AOE 33 | . . . 12 . 21 . Terrain Rammed . | . . . . . . . Walls Destroyed . | . . . . . . . Machines Disabled . | . . . . . . . Actions | -11 -10 -10 -10 -8 -6 -6 --------- Run | Yrd Mat Min Sub Scr Fac Low Total 5305 | 68 270 640 399 2638 1247 43 Wait 622 | . . 199 46 . 364 13 Move 4348 | 55 243 416 296 2595 738 5 Hop . | . . . . . . . Pick Up 61 | 3 14 2 8 18 16 . Fast Attach 30 | 6 1 . . 9 13 1 Attach 33 | . . . 9 4 16 4 Detach 9 | . . . . 3 6 . Swap 12 | . 2 . 2 . 7 1 Drop 18 | . . . . 9 6 3 Fire 99 | 4 10 22 38 . 9 16 Melee 66 | . . . . . 66 . Ram . | . . . . . . . Kick 6 | . . . . . 6 . Crush 1 | . . 1 . . . . Escape Stasis . | . . . . . . . Rewire . | . . . . . . . Trap . | . . . . . . . Miscellaneous . | . . . . . . . Route ------- -11/Scrapyard -10/Materials -10/Mines (discovered 3 exits: [*Mat x2] / [*Sub]) -10/Subcaves -8/Scraptown (discovered 2 exits: *Fac x2) -6/Factory (discovered 5 exits: Fac x3 / *Low / Ext) -6/Lower Caves History --------- Turn | Location | Event 30 | -11/Scrapyard | Discovered new exit (range 15) 109 | -11/Scrapyard | Entered Materials 302 | -10/Materials | Build established: Mutant 486 | -10/Materials | Discovered new exit (range 7) 740 | -10/Materials | Entered Mines 753 | -10/Mines | Assisted by bots powering up and referring to "LRC-V3" 1301 | -10/Mines | Learned location of Mines (-8) 1773 | -10/Mines | Discovered new exit (range 7) 1895 | -10/Mines | Received a Rocket Launcher from a helpful Derelict 1901 | -10/Mines | Discovered new exit (range 8) 2014 | -10/Mines | Discovered new exit (range 11) 2342 | -10/Mines | Entered Subcaves 2342 | -10/Subcaves | Accompanied by 2 allies 2343 | -10/Subcaves | Approached by a straggling Scientist 2780 | -10/Subcaves | Core integrity fell below 50% 2799 | -10/Subcaves | Lost 5 parts (1p2n2w) 2917 | -10/Subcaves | Learned location of Storage (-8) 3118 | -10/Subcaves | Lost 6 parts (2p2n2w) 3138 | -10/Subcaves | Shifting Twisted Machinery released Scrap Shield 3146 | -10/Subcaves | Shifting Twisted Machinery released Humpback 3198 | -10/Subcaves | Entered Scraptown 3310 | -8/Scraptown | Visited UFD Registry 3310 | -8/Scraptown | Registered with UFD as "Flexicoil" 3357 | -8/Scraptown | Visited Research Penetration Think Tank 3384 | -8/Scraptown | Visited Scrap Suit Storage 3417 | -8/Scraptown | Visited Scrapoid Research Area 3471 | -8/Scraptown | Visited Abandonware Association 3498 | -8/Scraptown | Learned abandonware demo "REVENGE.EXE" 3498 | -8/Scraptown | Learned abandonware demo "TRNCOAT.EXE" 3525 | -8/Scraptown | Visited Science Guys 3570 | -8/Scraptown | Visited Sword Containment 3695 | -8/Scraptown | Visited Cartography Club 3786 | -8/Scraptown | Visited A0-MCA Data Center 4153 | -8/Scraptown | Released all parts (4) 4465 | -8/Scraptown | Build established: Hauler-Mutant 4831 | -8/Scraptown | Visited TADAMA 5066 | -8/Scraptown | Heard Great Nut preacher, LISTEN AND RECITE! 5803 | -8/Scraptown | Scanned Subdweller tech in exchange for log data 5837 | -8/Scraptown | Learned location of 1 exit from Research 5838 | -8/Scraptown | Learned location of Warlord (-4) 5838 | -8/Scraptown | Learned 8 Factory zone layouts 5910 | -8/Scraptown | Delivered Scrap Shield to a Scientist 5968 | -8/Scraptown | Found Surveybot 17 Chip 6009 | -8/Scraptown | Found Deep Structural Scanner 6016 | -8/Scraptown | Learned location of Lower Caves (-7) 6016 | -8/Scraptown | Learned location of Proximity Caves (-6) 6016 | -8/Scraptown | Learned location of Testing (-2) 6016 | -8/Scraptown | Learned 12 Factory zone layouts 6016 | -8/Scraptown | Learned 8 Access zone layouts 6016 | -8/Scraptown | Learned 4 Storage zone layouts 6016 | -8/Scraptown | Learned 20 Proximity Caves zone layouts 6016 | -8/Scraptown | Learned 8 Proximity Caves zone layouts 6016 | -8/Scraptown | Learned location of 1 exit from Factory 6016 | -8/Scraptown | Learned location of 2 exits from Proximity Caves 6016 | -8/Scraptown | Identified exit to Factory 6081 | -8/Scraptown | Visited Bundlers 6145 | -8/Scraptown | Build established: Mutant 6624 | -8/Scraptown | Visited The Evicted 6645 | -8/Scraptown | Visited Junk Repository 6937 | -8/Scraptown | Visited Supply Room 7277 | -8/Scraptown | Found Prototype Slashing Weapon 7277 | -8/Scraptown | Identified Companion Sword 7347 | -8/Scraptown | Given a D+ rating by A0-MCA 7355 | -8/Scraptown | Found A0-MCA's Component Scanner 8462 | -8/Scraptown | Met Optimus 8462 | -8/Scraptown | Accepted into 0bPrime 8596 | -8/Scraptown | Entered Factory 8596 | -6/Factory | Evolved 8 slots: Propulsion x4, Utility x4 8597 | -6/Factory | Identified exit to Factory 8598 | -6/Factory | Identified exit to Extension 8598 | -6/Factory | Identified exit to Lower Caves 8688 | -6/Factory | Spotted B-75 Beast 8693 | -6/Factory | Loaded intel: 8 recycling unit locations 8855 | -6/Factory | Lost 9 parts (1p7n1w) 9117 | -6/Factory | Learned location of Protoforge (-3) 9497 | -6/Factory | Core integrity fell below 50% 9830 | -6/Factory | Garrison activated, responded to threat 9873 | -6/Factory | Cargo convoy interrupted 9880 | -6/Factory | Core integrity fell below 20% 9880 | -6/Factory | System corruption reached 10% 9881 | -6/Factory | Entered Lower Caves 9883 | -6/Lower Caves | UFD Scientist delivered a prototype 9888 | -6/Lower Caves | Attracted the attention of an 0b10 checkpoint 9893 | -6/Lower Caves | Found Prototype Protection 9893 | -6/Lower Caves | Identified Enh. Scrap Shield 9912 | -6/Lower Caves | Lost 5 parts (1p4n) 9945 | -6/Lower Caves | Destroyed by Y-54 Guardian with Flak Gun Last Messages --------------- 09890_ Dropped Imp. Heat Sink. 09891_ Dropped Imp. Sensor Array. 09893_ Acquired Prototype Protection. 09893_ Identified Enh. Scrap Shield. 09904_ System corrupted: Energy discharge (-51). 09907_ Slug penetrates S-27 Virus. 09907_ S-27 Virus destroyed. 09908_ 0M-IES(S) destroyed. Companion Sword: "Minor setbacks!" 09913_ JI-GQP(S) destroyed. 09913_ Slug penetrates S-27 Virus. 09913_ S-27 Virus suffers critical hit (Destroy). 09913_ S-27 Virus destroyed. 09915_ Autogun fries itself beyond repair. 09921_ System corrupted: IFF burst signal emitted. 09921_ Lgt. Nuclear Core fries itself beyond repair. 09930_ Slug penetrates Y-54 Guardian. 09938_ System corrupted: Energy discharge (-35). 09940_ Slug penetrates Y-54 Guardian. 09944_ Slug penetrates Wall. Map ----- +----------------------------------------------------+ | ?????????????????????????????????????????????????? | | ?????????????????????????????????????????????????? | | ?????????????????????????????????????????????????? | | ?????????????????????????????????????????????????? | | ?????????????????????????????????????????????????? | | ?????????????????????????????????????????????????? | | ?????????????????????????????????????????????????? | | ?????????????????????????????????????????????????? | | ?????????????????????????????????????????????????? | | ?????????????????????????????????????????????????? | | ?????????????????????????????????????????????????? | | ?????????????????????????????????????????????????? | | ?????????????????????????????????????????????????? | | ?????????????????????????????????????????????????? | | ?????????????????????????????????????????????????? | | ?????????????????????????????????????????????????? | | ?????????????????????????????????????????????????? | | ?????????????????????????????????????????????????? | | ?????????????????????????????????????????????????? | | ?????????????????????????????????????????????????? | | ?????????????????????????????????????????????????? | | ?????????????????????????????????????????????????? | | ?????????????????????????????????????????????????? | | ?????????????????????????????????????????????????? | | ??????????????# ###???####??????????????????????? | | ?????? ### ## @##?????????????????????? | | ?????# #########?????????????? | | ??????# $ Y! ####??????????? | | ???????# ############ =! #??????????? | | ????????????????????????####%% #??? | | ???????????????????????????## #??? | | ????????????????????????????? "#? | | ????????????????????????????? ##### "? | | ????????????????????????????? % #?????????? | | ?????????????????????????????? #?????????? | | ?????????????????????????????? #?????????? | | ?????????????????????????????? #?????????? | | ?????????????????????????????? #?????????? | | ??????????????????????????????? #????????? | | ??????????????????????????????? #???????? | | ??????????????????????????????? ## #??????? | | ??????????????????????????????? ##?# #?????? | | ????????????????????????????????#???#### ?????? | | ????????????????????????????????????????# ?????? | | ????????????????????????????????????????? ??????? | | ?????????????????????????????????????????????????? | | ?????????????????????????????????????????????????? | | ?????????????????????????????????????????????????? | | ?????????????????????????????????????????????????? | | ?????????????????????????????????????????????????? | +----------------------------------------------------+ Best States ------------- Heat Dissipation 37 Energy Generation 18 Energy Capacity 250 Matter Stores 300 Matter Capacity 300 Sight Range 22 Robot Scan Range 15 Terrain Scan Range 20 Terrain Scan Density 1210 Armor Coverage 800 Core Shielding 20 Melee Speed Boost 20 Evasion (%) 63 Melee Accuracy 6 Recoil Reduction 2 Offensive Hacking 10 Item Schematics ----------------- None Robot Schematics ------------------ None Fabricated ------------ Nothing Repaired ---------- Nothing Studied --------- None Alien Tech Used ----------------- None Achievements -------------- None Challenges ------------ None Game ------ Seed CoilDiametricStabilizer Manual? 0 Play Time 00:27:39 Cumulative 414.2 hours Start 2025.11.19 @ 21:05:10 End 2025.11.23 @ 15:56:38 Sessions 4 Manual Loads 0 Difficulty Rogue Special Mode None Game No. 375 Rogue 339 Adventurer 36 Explorer 0 Win Type - Total 16 Types 7/0/9/0/0/0/0/0/0/0 Lore% 72 Gallery% 85 Achievement% 63 Wizard Run 0 Options --------- Layout 0 ASCII 0 Keyboard 0 Movement Mouse Keybinds 0 Fullscreen 1 Font 18/SmallcapsGlow Map View 76x50 Zoom Use 0% Tactical HUD 1 Map Filters NONE Filters NONE Steam 1 RUN: 23116313-09dd-4aa1-b29a-053f94d18720